bitfinex/quotes_BTCUSD_20250529
["timestamp","ask_amount","ask_price","bid_price","bid_amount"]
[1748537673876,0.17753689,106710.0,106700.0,0.35018932]
[1748537674079,0.17753689,106710.0,106700.0,0.3326893]
[1748537674292,0.17753689,106710.0,106700.0,0.35019058]
[1748537675632,0.17753689,106710.0,106700.0,0.3324493]
[1748537676257,0.17753689,106710.0,106700.0,0.36585258]
[1748537677215,0.17753689,106710.0,106700.0,0.36585682]
[1748537677448,0.17753689,106710.0,106700.0,0.34995682]
[1748537677667,0.17753689,106710.0,106700.0,0.4721512]
[1748537677870,0.17753689,106710.0,106700.0,0.4551112]
[1748537678481,0.17753689,106710.0,106700.0,0.4551146]
[1748537678685,0.17753689,106710.0,106700.0,0.1483546]
[1748537678904,0.17753689,106710.0,106700.0,0.4549146]
[1748537679317,0.17753689,106710.0,106700.0,0.4548346]
[1748537679746,0.17753689,106710.0,106700.0,0.4703346]
[1748537679950,0.17753689,106710.0,106700.0,1.10895335]
[1748537680565,0.17753689,106710.0,106700.0,1.29639477]
[1748537680773,0.17753689,106710.0,106700.0,0.65777428]
[1748537680976,0.17753689,106710.0,106700.0,1.31813599]
[1748537681183,0.16816579,106710.0,106700.0,0.47293082]
[1748537681389,0.16816579,106710.0,106700.0,0.66974431]
[1748537681586,0.1587946,106710.0,106700.0,0.16685082]
[1748537681792,0.1587946,106710.0,106700.0,0.15135082]
[1748537682220,0.1587946,106710.0,106700.0,0.45727193]
[1748537682427,0.1587946,106710.0,106700.0,0.45727191]
[1748537682643,0.1587946,106710.0,106700.0,0.45415377]
[1748537683343,0.16172314,106710.0,106700.0,0.02715897]
[1748537683626,0.17762314,106710.0,106700.0,0.34155469]
[1748537683817,0.17762314,106710.0,106700.0,0.34155653]
[1748537684231,0.17762314,106710.0,106700.0,0.33280076]
[1748537684456,0.17762314,106710.0,106700.0,0.34155668]
[1748537685069,0.17762314,106710.0,106700.0,0.34155852]
[1748537685280,0.17762314,106710.0,106700.0,0.34156045]
[1748537685734,0.17762314,106710.0,106700.0,0.34156837]
[1748537685938,0.17762314,106710.0,106700.0,0.34116837]
[1748537686139,0.1587946,106710.0,106700.0,0.35726839]
[1748537686352,0.1587946,106710.0,106700.0,0.35727531]
[1748537686603,0.1587946,106710.0,106700.0,0.35727545]
[1748537686823,0.16172316,106710.0,106700.0,0.35727545]
[1748537687039,0.16172316,106710.0,106700.0,0.35727615]
[1748537687254,0.16172316,106710.0,106700.0,0.35727656]
[1748537687492,0.16172316,106710.0,106700.0,0.35728299]
[1748537687896,0.16172316,106710.0,106700.0,0.03594299]
[1748537688102,0.16172316,106710.0,106700.0,0.34098299]
[1748537688331,0.17832316,106710.0,106700.0,0.33221843]
[1748537688536,0.1587946,106710.0,106700.0,0.35748851]
[1748537688769,0.1587946,106710.0,106700.0,0.35172045]
[1748537690266,0.1587946,106710.0,106700.0,0.33418778]
[1748537690469,0.1587946,106710.0,106700.0,0.4573252]
[1748537690922,0.1587946,106710.0,106700.0,0.4568052]
[1748537691378,0.1587946,106710.0,106700.0,0.45681442]
[1748537692004,0.1587946,106710.0,106700.0,0.45681441]
[1748537692225,0.1587946,106710.0,106700.0,0.64425583]
[1748537692424,0.18742217,106720.0,106710.0,0.04624085]
[1748537692652,0.18742217,106720.0,106710.0,0.34526628]
[1748537692867,0.18742217,106720.0,106710.0,0.35463747]
[1748537693075,0.18742217,106720.0,106710.0,0.33708789]
[1748537693292,0.18742217,106720.0,106710.0,0.35463054]
[1748537693506,0.18742217,106720.0,106710.0,0.36400146]
[1748537693715,0.18842217,106720.0,106710.0,0.36500146]
[1748537693950,0.01036961,106720.0,106710.0,0.36500131]
[1748537694155,0.02073931,106720.0,106710.0,0.9864498]
[1748537694413,0.03010918,106720.0,106710.0,1.093947]
[1748537694650,0.03947923,106720.0,106710.0,1.093947]
[1748537694883,0.04884936,106720.0,106710.0,1.093947]
[1748537695103,0.04884936,106720.0,106710.0,1.09393903]
[1748537695523,0.03947923,106720.0,106710.0,1.09393903]
[1748537695937,0.02073931,106720.0,106710.0,2.12999203]
[1748537696189,0.02073939,106720.0,106710.0,1.86397065]
[1748537696390,0.03010935,106720.0,106710.0,1.93541763]
[1748537696559,0.03947948,106720.0,106710.0,1.63472963]
[1748537696799,0.03010935,106720.0,106710.0,1.59599052]
[1748537697007,0.03947948,106720.0,106710.0,1.49392452]
[1748537697213,0.03947948,106720.0,106710.0,1.59599052]
[1748537697850,0.22688577,106720.0,106710.0,1.78807395]
[1748537698075,0.22688647,106720.0,106710.0,1.17995612]
[1748537698306,0.21751669,106720.0,106710.0,1.18932704]
[1748537698528,0.17751669,106720.0,106710.0,1.18924704]
[1748537699033,0.17751669,106720.0,106710.0,1.19860896]
[1748537699250,0.18688682,106720.0,106710.0,1.19860895]
[1748537699461,0.18688682,106720.0,106710.0,1.79731315]
[1748537699688,0.18688682,106720.0,106710.0,1.77980444]
[1748537699899,0.18688682,106720.0,106710.0,1.19860607]
[1748537700080,0.18688682,106720.0,106710.0,0.78783523]
[1748537700361,0.18688682,106720.0,106710.0,1.18895523]
[1748537700590,0.18688682,106720.0,106710.0,1.17144652]
[1748537700811,0.18688682,106720.0,106710.0,1.17144667]
[1748537701054,0.18688682,106720.0,106710.0,1.18895448]
[1748537701287,0.18688682,106720.0,106710.0,1.18879448]
[1748537701509,0.18688682,106720.0,106710.0,1.18879187]
[1748537702164,0.17751669,106720.0,106710.0,1.16067875]
[1748537702379,0.17751669,106720.0,106710.0,1.17004984]
[1748537702620,0.17751669,106720.0,106710.0,1.17933898]
[1748537702887,0.17751669,106720.0,106710.0,1.17933893]
[1748537703323,0.17751669,106720.0,106710.0,1.18870985]
[1748537703544,0.17751669,106720.0,106710.0,1.19807943]
[1748537703758,0.17751669,106720.0,106710.0,1.18870868]
[1748537704228,0.17751669,106720.0,106710.0,1.40857698]
[1748537704443,0.17751669,106720.0,106710.0,1.82663908]
[1748537704662,0.17751669,106720.0,106710.0,1.82659838]
[1748537705499,0.17751669,106720.0,106710.0,1.42607838]
[1748537705704,0.17751669,106720.0,106710.0,1.83580922]
[1748537705913,0.13751669,106720.0,106710.0,1.83580922]
[1748537706120,0.14688674,106720.0,106710.0,1.83580922]
[1748537706323,0.02810971,106720.0,106710.0,1.83580786]
[1748537706531,0.0093697,106720.0,106710.0,1.84517775]
[1748537706734,0.01873957,106720.0,106710.0,1.84517775]
[1748537706967,0.01873966,106720.0,106710.0,1.84517775]
[1748537707177,0.01873948,106720.0,106710.0,1.86422016]
[1748537707389,0.01873948,106720.0,106710.0,1.86421894]
[1748537707390,0.0093697,106720.0,106710.0,1.86421894]
[1748537707599,0.20615813,106730.0,106720.0,0.23814629]
[1748537707820,0.20615813,106730.0,106720.0,0.98794702]
[1748537708058,0.18735362,106750.0,106740.0,0.21851203]
[1748537708275,0.18735362,106750.0,106740.0,1.08298113]
[1748537708492,0.18735362,106750.0,106740.0,0.44473073]
[1748537708919,0.18735362,106750.0,106740.0,0.44173303]
[1748537709132,0.18735362,106750.0,106740.0,0.44172534]
[1748537709378,0.18935362,106750.0,106740.0,0.44286066]
[1748537709616,0.18935362,106750.0,106740.0,0.44285707]
[1748537710544,0.19035362,106750.0,106740.0,0.63022825]
[1748537710769,0.01236706,106750.0,106740.0,1.31158326]
[1748537711000,0.01236706,106750.0,106740.0,1.31458033]
[1748537711001,0.0311018,106750.0,106740.0,1.31458033]
[1748537711225,0.04046939,106750.0,106740.0,1.31458033]
[1748537711470,0.04046939,106750.0,106740.0,1.29709338]
[1748537711696,0.04046939,106750.0,106740.0,1.31457083]
[1748537711946,0.0311018,106750.0,106740.0,1.31457083]
[1748537712166,0.0217343,106750.0,106740.0,1.31457071]
[1748537712391,0.003,106750.0,106740.0,1.31457071]
[1748537712849,0.01236697,106750.0,106740.0,1.31457071]
[1748537713089,0.02173421,106750.0,106740.0,0.67631497]
[1748537713325,0.04046912,106750.0,106740.0,1.42109375]
[1748537713545,0.04046912,106750.0,106740.0,1.40362164]
[1748537713782,0.04983671,106750.0,106740.0,1.42109072]
[1748537714230,0.04983671,106750.0,106740.0,1.42109073]
[1748537714511,0.04983671,106750.0,106740.0,1.82109082]
[1748537714738,0.22782336,106750.0,106740.0,1.81172279]
[1748537714962,0.22782336,106750.0,106740.0,1.81172118]
[1748537715419,0.22782336,106750.0,106740.0,1.7942537]
[1748537715643,0.22782336,106750.0,106740.0,1.81172053]
[1748537716131,0.22782336,106750.0,106740.0,1.7942537]
[1748537716379,0.22782336,106750.0,106740.0,1.80235249]
[1748537716380,0.20908871,106750.0,106740.0,1.80235249]
[1748537716663,0.20908871,106750.0,106740.0,1.78488532]
[1748537716898,0.19972121,106750.0,106740.0,0.5437942]
[1748537717122,0.19972121,106750.0,106740.0,0.84483458]
[1748537717336,0.19972121,106750.0,106740.0,0.84483747]
[1748537717758,0.19972121,106750.0,106740.0,1.0415772]
[1748537718378,0.19972121,106750.0,106740.0,1.6801876]
[1748537718588,0.19972121,106750.0,106740.0,1.68955816]
[1748537719218,0.19972121,106750.0,106740.0,1.68955801]
[1748537719852,0.19035362,106750.0,106740.0,1.68955801]
[1748537720068,0.19035362,106750.0,106740.0,1.05131135]
[1748537720290,0.19035362,106750.0,106740.0,0.83040315]
[1748537720518,0.19035362,106750.0,106740.0,0.83052899]
[1748537720746,0.19035362,106750.0,106740.0,0.81304698]
[1748537720955,0.19035362,106750.0,106740.0,0.83052908]
[1748537721174,0.19035362,106750.0,106740.0,0.81304698]
[1748537721388,0.19035362,106750.0,106740.0,0.83053523]
[1748537721602,0.19035362,106750.0,106740.0,0.81304698]
[1748537721822,0.19035362,106750.0,106740.0,0.82954698]
[1748537722322,0.19035362,106750.0,106740.0,0.84703522]
[1748537722540,0.19035362,106750.0,106740.0,0.8470426]
[1748537722952,0.19035362,106750.0,106740.0,0.82954698]
[1748537723179,0.19035362,106750.0,106740.0,0.8466026]
[1748537723401,0.19035362,106750.0,106740.0,0.84660447]
[1748537723606,0.19035362,106750.0,106740.0,0.54372447]
[1748537724029,0.20635362,106750.0,106740.0,0.41244698]
[1748537724245,0.22145362,106750.0,106740.0,0.42994506]
[1748537724493,0.22145362,106750.0,106740.0,0.41244721]
[1748537724699,0.22145362,106750.0,106740.0,0.12722672]
[1748537724901,0.22145362,106750.0,106740.0,0.42982718]
[1748537725319,0.22145362,106750.0,106740.0,0.42982875]
[1748537726540,0.20635362,106750.0,106740.0,0.42982963]
[1748537727145,0.20635362,106750.0,106740.0,0.02163483]
[1748537727146,0.22215362,106750.0,106740.0,0.02163483]
[1748537727349,0.22215362,106750.0,106740.0,0.32083831]
[1748537727575,0.22215362,106750.0,106740.0,0.32079962]
[1748537728000,0.22215362,106750.0,106740.0,0.01863962]
[1748537728001,0.56215362,106750.0,106740.0,0.01863962]
[1748537728208,0.75040757,106750.0,106740.0,0.00113532]
[1748537728453,0.75040757,106750.0,106740.0,0.30321532]
[1748537729305,0.74040757,106750.0,106740.0,0.30321532]
[1748537729786,0.74040757,106750.0,106740.0,0.00113532]
[1748537729985,0.74040757,106750.0,106740.0,0.30321532]
[1748537730190,0.74040757,106750.0,106740.0,0.00113532]
[1748537730393,0.74040757,106750.0,106740.0,0.30317532]
[1748537731032,0.74040757,106750.0,106740.0,0.00113532]
[1748537731237,0.74040757,106750.0,106740.0,0.30301532]
[1748537731647,0.74040757,106750.0,106740.0,0.30289532]
[1748537732298,0.74040757,106750.0,106740.0,0.00113532]
[1748537732502,0.74040757,106750.0,106740.0,0.30281532]
[1748537733144,0.64935362,106750.0,106740.0,0.30281532]
[1748537733585,0.74186484,106750.0,106740.0,0.00113532]
[1748537733805,0.74040757,106750.0,106740.0,0.00113532]
[1748537734246,0.20616561,106710.0,106700.0,0.00451398]
[1748537734476,0.22136561,106710.0,106700.0,0.39932793]
[1748537734696,0.22136561,106710.0,106700.0,0.41696554]
[1748537734957,0.22136561,106710.0,106700.0,0.39946322]
[1748537735578,0.22336561,106710.0,106700.0,0.40946322]
[1748537736224,0.22336561,106710.0,106700.0,0.10570322]
[1748537736442,0.23946561,106710.0,106700.0,0.01464927]
[1748537736662,0.23946561,106710.0,106700.0,0.31872927]
[1748537737108,0.22336561,106710.0,106700.0,0.31872927]
[1748537737320,0.23151603,106710.0,106700.0,0.31472927]
[1748537737571,0.23151603,106710.0,106700.0,0.01064927]
[1748537737779,0.24811603,106710.0,106700.0,0.31184927]
[1748537737984,0.24711603,106710.0,106700.0,0.30884927]
[1748537738191,0.24711603,106710.0,106700.0,0.31084927]
[1748537738418,0.23896561,106710.0,106700.0,0.00764927]
[1748537738651,0.23896561,106710.0,106700.0,0.31180927]
[1748537738868,0.19896561,106710.0,106700.0,0.31180927]
[1748537739082,0.21770737,106710.0,106700.0,0.31180927]
[1748537740168,0.21770737,106710.0,106700.0,0.00764927]
[1748537740378,0.21770737,106710.0,106700.0,0.31172927]
[1748537741490,0.21770737,106710.0,106700.0,0.00764927]
[1748537741699,0.30876132,106710.0,106700.0,0.00764927]
[1748537742141,0.30876132,106710.0,106700.0,0.31192927]
[1748537742803,0.30876132,106710.0,106700.0,0.30992927]
[1748537743022,0.21770737,106710.0,106700.0,0.30992927]
[1748537743452,0.31494737,106710.0,106700.0,0.30992927]
[1748537743913,0.18490737,106710.0,106700.0,0.32442927]
[1748537744137,0.18490737,106710.0,106700.0,0.41548322]
[1748537744352,0.18690737,106710.0,106700.0,0.41548322]
[1748537744577,0.18790737,106710.0,106700.0,0.41548322]
[1748537744803,0.18790737,106710.0,106700.0,0.43002407]
[1748537745030,0.00937049,106710.0,106700.0,1.28008778]
[1748537745252,0.18742201,106720.0,106710.0,0.03034085]
[1748537745253,0.20616219,106720.0,106710.0,0.03034085]
[1748537745462,0.20616219,106720.0,106710.0,0.13907423]
[1748537745674,0.20616219,106720.0,106710.0,0.12257423]
[1748537745899,0.20616219,106720.0,106710.0,0.4104748]
[1748537747177,0.20616219,106720.0,106710.0,0.4266748]
[1748537747400,0.20616219,106720.0,106710.0,0.4276748]
[1748537747401,0.20716219,106720.0,106710.0,0.4276748]
[1748537747612,0.20716219,106720.0,106710.0,0.4296748]
[1748537748031,0.20716219,106720.0,106710.0,0.4134748]
[1748537748240,0.20716219,106720.0,106710.0,0.09405395]
[1748537748467,0.20716219,106720.0,106710.0,0.39901395]
[1748537749537,0.20716219,106720.0,106710.0,0.41461395]
[1748537750213,0.20716219,106720.0,106710.0,0.003]
[1748537750439,0.22236219,106720.0,106710.0,0.003]
[1748537750667,0.23806219,106720.0,106710.0,0.003]
[1748537750881,0.23806219,106720.0,106710.0,0.30772]
[1748537751301,0.23806219,106720.0,106710.0,0.30764]
[1748537754548,0.22236219,106720.0,106710.0,0.30764]
[1748537757001,0.23816219,106720.0,106710.0,0.30692]
[1748537757417,0.23816219,106720.0,106710.0,0.003]
[1748537757848,0.23816219,106720.0,106710.0,0.30676]
[1748537758075,0.23816219,106720.0,106710.0,0.003]
[1748537758289,0.32921614,106720.0,106710.0,0.003]
[1748537758754,0.22236219,106720.0,106710.0,0.30672]
[1748537759473,0.32921614,106720.0,106710.0,0.003]
[1748537760373,0.32921614,106720.0,106710.0,0.001]
[1748537760648,0.22849486,106710.0,106700.0,0.30856927]
[1748537760888,0.31954881,106710.0,106700.0,0.30856927]
[1748537761612,0.31954881,106710.0,106700.0,0.00464927]
[1748537761831,0.31954881,106710.0,106700.0,0.31040927]
[1748537762779,0.41770881,106710.0,106700.0,0.31040927]
[1748537763016,0.41870881,106710.0,106700.0,0.31136927]
[1748537763482,0.41870881,106710.0,106700.0,0.00764927]
[1748537764891,0.75870881,106710.0,106700.0,0.00764927]
[1748537765141,0.23800427,106690.0,106680.0,0.00427981]
[1748537765378,0.23800427,106690.0,106680.0,0.30825489]
[1748537765640,0.23800427,106690.0,106680.0,0.30817489]
[1748537765883,0.23800427,106690.0,106680.0,0.00441489]
[1748537766113,0.32905822,106690.0,106680.0,0.00013508]
[1748537766342,0.66905822,106690.0,106680.0,0.00013508]
[1748537766573,0.66905822,106690.0,106680.0,0.00113508]
[1748537766858,0.67005822,106690.0,106680.0,0.00113508]
[1748537767089,0.66905822,106690.0,106680.0,0.00013508]
[1748537767317,0.67005822,106690.0,106680.0,0.00113508]
[1748537767556,0.66905822,106690.0,106680.0,0.00113508]
[1748537767804,0.66905822,106690.0,106680.0,0.00013508]
[1748537768530,0.67205822,106690.0,106680.0,0.00113508]
[1748537768786,0.67605822,106690.0,106680.0,0.00113508]
[1748537770260,0.77425822,106690.0,106680.0,0.00113508]
[1748537771800,0.67605822,106690.0,106680.0,0.00113508]
[1748537772052,0.77425822,106690.0,106680.0,0.00113508]
[1748537773011,0.76727424,106690.0,106680.0,0.30409508]
[1748537773239,0.76727424,106690.0,106680.0,0.30401508]
[1748537773974,0.78227424,106690.0,106680.0,0.00117508]
[1748537774226,1.35454526,106690.0,106680.0,0.00117508]
[1748537774640,1.26203404,106690.0,106680.0,0.00117508]
[1748537775788,1.65115349,106690.0,106680.0,0.00117508]
[1748537776044,5.66803499,106670.0,106640.0,8e-05]
[1748537776286,0.21880558,106650.0,106640.0,8e-05]
[1748537776521,0.71477953,106650.0,106640.0,0.0005716]
[1748537776754,0.74293153,106650.0,106640.0,0.0005716]
[1748537776979,0.75747238,106650.0,106640.0,0.0005716]
[1748537777186,0.75293153,106650.0,106640.0,0.0005716]
[1748537777398,0.85113153,106650.0,106640.0,0.0015716]
[1748537778073,0.84523153,106650.0,106640.0,0.0015716]
[1748537778505,0.84523153,106650.0,106640.0,0.0016116]
[1748537778950,0.75203153,106650.0,106640.0,0.0006116]
[1748537779206,0.74203153,106650.0,106640.0,0.0006116]
[1748537779679,0.20692404,106640.0,106630.0,0.03426126]
[1748537779689,0.22202404,106640.0,106630.0,0.03372966]
[1748537779947,0.34190088,106640.0,106630.0,0.03372966]
[1748537780877,0.46859476,106640.0,106630.0,0.03372966]
[1748537781028,0.33490088,106640.0,106630.0,0.03472966]
[1748537781244,0.39321799,106640.0,106630.0,0.03472966]
[1748537781480,0.29497799,106640.0,106630.0,0.03472966]
[1748537781691,0.73321799,106640.0,106630.0,0.03476966]
[1748537782824,0.84102921,106640.0,106630.0,0.03476966]
[1748537783043,0.79851799,106640.0,106630.0,0.03476966]
[1748537783258,0.73321799,106640.0,106630.0,0.03476966]
[1748537784197,0.73169799,106640.0,106630.0,0.03476966]
[1748537784681,0.76052088,106640.0,106630.0,0.03476966]
[1748537785385,0.74669799,106640.0,106630.0,0.03476966]
[1748537785620,0.74669799,106640.0,106630.0,0.0127807]
[1748537785621,0.75259799,106640.0,106630.0,0.0127807]
[1748537785848,0.77515187,106640.0,106630.0,0.0127807]
[1748537786078,0.81987476,106640.0,106630.0,0.0127807]
[1748537786311,0.81397476,106640.0,106630.0,0.0127807]
[1748537787275,0.82675576,106640.0,106630.0,0.0127807]
[1748537787544,0.85719134,106640.0,106630.0,0.0127807]
[1748537787807,0.91309134,106640.0,106630.0,0.0127807]
[1748537788143,0.88265576,106640.0,106630.0,0.0127807]
[1748537788371,0.86247372,106640.0,106630.0,0.0127807]
[1748537788632,0.88429661,106640.0,106630.0,0.0117807]
[1748537788841,0.91729661,106640.0,106630.0,0.0117807]
[1748537790330,0.92319661,106640.0,106630.0,0.0117807]
[1748537790544,1.01570783,106640.0,106630.0,0.0117807]
[1748537790754,0.53696098,106620.0,106610.0,8e-05]
[1748537790966,0.72477493,106620.0,106610.0,8e-05]
[1748537791891,0.72977493,106620.0,106610.0,8e-05]
[1748537792104,0.73277493,106620.0,106610.0,8e-05]
[1748537792329,0.7422306,106620.0,106610.0,8e-05]
[1748537793818,0.7678306,106620.0,106610.0,8e-05]
[1748537794284,0.7519477,106620.0,106610.0,8e-05]
[1748537795643,0.7419477,106620.0,106610.0,0.01538]
[1748537797136,0.7419477,106620.0,106610.0,8e-05]
[1748537797377,0.7419477,106620.0,106610.0,0.01538]
[1748537798978,0.6451877,106620.0,106610.0,0.01538]
[1748537799184,0.7462677,106620.0,106610.0,8e-05]
[1748537799604,0.7462677,106620.0,106610.0,0.01518]
[1748537800692,0.7744267,106620.0,106610.0,0.01518]
[1748537801780,0.6733467,106620.0,106610.0,0.01518]
[1748537801997,0.7744267,106620.0,106610.0,0.01518]
[1748537803969,0.21413375,106620.0,106610.0,0.03148]
[1748537804226,0.31521375,106620.0,106610.0,0.03148]
[1748537804662,0.20467808,106620.0,106610.0,0.03148]
[1748537804891,0.20167808,106620.0,106610.0,0.03148]
[1748537805324,0.19667808,106620.0,106610.0,0.03448103]
[1748537805576,0.19867808,106620.0,106610.0,0.03548103]
[1748537805799,0.20267808,106620.0,106610.0,0.03548103]
[1748537806440,0.20267808,106620.0,106610.0,0.3424]
[1748537806865,0.19667808,106620.0,106610.0,0.3414]
[1748537807110,0.19667808,106620.0,106610.0,0.03148]
[1748537807310,0.19767808,106620.0,106610.0,0.34128]
[1748537807948,0.19767808,106620.0,106610.0,0.34228]
[1748537810851,0.19767808,106620.0,106610.0,0.34528104]
[1748537812397,0.19767808,106620.0,106610.0,0.43633499]
[1748537812627,0.20705691,106620.0,106610.0,0.4478748]
[1748537812862,0.20705691,106620.0,106610.0,0.44999576]
[1748537813763,0.20705691,106620.0,106610.0,0.4469948]
[1748537813981,0.20705691,106620.0,106610.0,0.44999575]
[1748537814622,0.20705691,106620.0,106610.0,0.4469948]
[1748537815052,0.20705691,106620.0,106610.0,0.34116]
[1748537815285,0.20705691,106620.0,106610.0,0.03248]
[1748537815510,0.20705691,106620.0,106610.0,0.34112]
[1748537816196,0.20705691,106620.0,106610.0,0.34104]
[1748537817612,0.62189671,106620.0,106610.0,0.00108]
[1748537817833,0.71295066,106620.0,106610.0,0.00108]
[1748537818049,0.71295066,106620.0,106590.0,0.25789984]
[1748537818050,0.19699794,106600.0,106590.0,0.25789984]
[1748537818292,0.19699794,106600.0,106590.0,0.26665676]
[1748537818744,0.19699794,106600.0,106590.0,0.26665679]
[1748537818937,0.19699794,106600.0,106590.0,0.26665663]
[1748537819151,0.19699794,106600.0,106590.0,0.34895379]
[1748537819626,0.19848951,106600.0,106590.0,0.36449464]
[1748537819838,0.19848951,106600.0,106590.0,0.36749464]
[1748537819839,0.19948951,106600.0,106590.0,0.36749464]
[1748537821123,0.19948951,106600.0,106590.0,0.39929464]
[1748537821782,0.2088701,106600.0,106590.0,0.40229607]
[1748537821995,0.2088701,106600.0,106590.0,1.04200602]
[1748537822676,0.19948907,106600.0,106590.0,1.22964088]
[1748537822888,0.22763094,106600.0,106590.0,0.58993093]
[1748537823105,0.19948925,106600.0,106590.0,1.23902262]
[1748537823329,0.21824973,106600.0,106590.0,1.69766557]
[1748537823550,0.03063238,106600.0,106590.0,1.70704669]
[1748537823763,0.22763032,106600.0,106590.0,1.70704626]
[1748537823993,0.22763032,106600.0,106590.0,1.70704635]
[1748537824206,0.21824964,106600.0,106590.0,1.71642756]
[1748537824412,0.04001297,106600.0,106590.0,1.70704635]
[1748537824634,0.04001306,106600.0,106590.0,1.71642747]
[1748537824869,0.03063238,106600.0,106590.0,1.71642747]
[1748537825088,0.00249157,106600.0,106590.0,1.71642747]
[1748537825314,0.00249157,106600.0,106590.0,2.26302047]
[1748537825953,0.00249157,106600.0,106590.0,2.22284053]
[1748537826202,0.00249157,106600.0,106590.0,2.62284053]
[1748537826404,0.01187164,106600.0,106590.0,2.62284053]
[1748537826624,0.02125197,106600.0,106590.0,2.62284053]
[1748537827069,0.18758206,106620.0,106610.0,0.01454085]
[1748537827292,0.19696081,106620.0,106610.0,1.23250928]
[1748537827534,0.19696081,106620.0,106610.0,1.2343252]
[1748537827756,0.00937848,106620.0,106610.0,1.26246452]
[1748537827979,0.01875714,106620.0,106610.0,1.26884315]
[1748537828206,0.00937848,106620.0,106610.0,1.27184365]
[1748537828423,0.02813588,106620.0,106610.0,1.27184365]
[1748537828641,0.00937831,106620.0,106610.0,1.26246323]
[1748537828858,0.00937831,106620.0,106610.0,1.26256323]
[1748537829075,0.03751446,106620.0,106610.0,1.26256323]
[1748537829295,0.03751437,106620.0,106610.0,1.26256323]
[1748537829519,0.0197567,106620.0,106610.0,1.26256323]
[1748537829737,0.0197567,106620.0,106610.0,2.66932223]
[1748537829738,0.003,106620.0,106610.0,2.66932223]
[1748537829960,0.28744973,106670.0,106660.0,0.0159]
[1748537829961,0.18756973,106670.0,106660.0,0.0159]
[1748537830193,0.18756973,106670.0,106660.0,0.33990238]
[1748537830447,0.18756973,106670.0,106660.0,0.64120209]
[1748537830682,0.18756973,106670.0,106660.0,1.24073201]
[1748537830932,0.18756973,106670.0,106660.0,1.04384481]
[1748537831429,0.18856973,106670.0,106660.0,0.64233713]
[1748537831653,0.18856973,106670.0,106660.0,0.44544993]
[1748537832256,0.01037426,106670.0,106660.0,1.26061778]
[1748537832501,0.02912279,106670.0,106660.0,1.27499195]
[1748537832909,0.22499154,106670.0,106660.0,1.26161778]
[1748537833158,0.0468721,106670.0,106660.0,1.28850648]
[1748537833383,0.0374974,106670.0,106660.0,1.28750648]
[1748537833596,0.0374974,106670.0,106660.0,1.29050648]
[1748537834275,0.01874826,106670.0,106660.0,1.29050648]
[1748537834496,0.20634133,106680.0,106670.0,0.23864328]
[1748537834719,0.20634133,106680.0,106670.0,0.92922741]
[1748537834930,0.20634133,106680.0,106670.0,0.93860194]
[1748537835610,0.00937347,106680.0,106670.0,1.35735073]
[1748537835835,0.00937312,106680.0,106670.0,1.34060098]
[1748537836058,0.20751732,106700.0,106690.0,0.2429727]
[1748537836059,0.235557,106700.0,106690.0,0.2429727]
[1748537836271,0.235557,106700.0,106690.0,0.4438348]
[1748537836272,0.22618529,106700.0,106690.0,0.4438348]
[1748537837367,0.23118529,106700.0,106690.0,0.4448348]
[1748537837581,0.23118529,106700.0,106690.0,0.8438348]
[1748537837582,0.22818529,106700.0,106690.0,0.8438348]
[1748537837792,0.22818529,106700.0,106690.0,1.04166673]
[1748537838063,0.20944142,106700.0,106690.0,0.8448748]
[1748537838962,0.20744142,106700.0,106690.0,0.8448748]
[1748537839178,0.21681331,106700.0,106690.0,1.04170665]
[1748537839420,0.22618494,106700.0,106690.0,0.8448748]
[1748537840519,0.22618494,106700.0,106690.0,0.5382348]
[1748537840744,0.22618494,106700.0,106690.0,0.00104]
[1748537840971,0.24268494,106700.0,106690.0,0.30744]
[1748537841193,0.25908494,106700.0,106690.0,0.30744]
[1748537841647,0.25908494,106700.0,106690.0,0.3074]
[1748537842120,0.25908494,106700.0,106690.0,0.30728]
[1748537842341,0.25908494,106700.0,106690.0,0.30628]
[1748537842570,0.26308494,106700.0,106690.0,0.30728]
[1748537843906,0.26308494,106700.0,106690.0,0.30692]
[1748537844606,0.60308494,106700.0,106690.0,0.00104]
[1748537844847,0.20624293,106670.0,106660.0,0.30601513]
[1748537845081,0.30604293,106670.0,106660.0,0.30601513]
[1748537845336,0.30604293,106670.0,106660.0,0.00013513]
[1748537845592,0.30604293,106670.0,106660.0,0.30589513]
[1748537846283,0.30804293,106670.0,106660.0,0.30689513]
[1748537846504,0.30904293,106670.0,106660.0,0.30689513]
[1748537846712,0.20924293,106670.0,106660.0,0.30689513]
[1748537847827,0.20924293,106670.0,106660.0,0.30693513]
[1748537848257,0.20924293,106670.0,106660.0,0.32273513]
[1748537848903,0.20924293,106670.0,106660.0,0.01697513]
[1748537849125,0.20924293,106670.0,106660.0,0.32229513]
[1748537849831,0.20924293,106670.0,106660.0,0.42788993]
[1748537850042,0.20924293,106670.0,106660.0,0.44418993]
[1748537850486,0.02174826,106670.0,106660.0,1.25935717]
[1748537850962,0.20744142,106700.0,106680.0,0.03484677]
[1748537851182,0.02,106700.0,106690.0,2.23483808]
[1748537851403,0.02,106700.0,106690.0,3.13371149]
[1748537851634,0.02,106700.0,106690.0,3.06966449]
[1748537851864,0.00863611,106730.0,106720.0,0.26055702]
[1748537852083,0.00863611,106730.0,106720.0,1.25802098]
[1748537852084,0.02737357,106730.0,106720.0,1.25802098]
[1748537852308,0.03674265,106730.0,106720.0,1.92535729]
[1748537852525,0.03674265,106730.0,106720.0,2.19819029]
[1748537852740,0.03674248,106730.0,106720.0,2.07515929]
[1748537853177,0.03674248,106730.0,106720.0,2.07615929]
[1748537853419,0.24336154,106730.0,106720.0,2.06678959]
[1748537853667,0.23399351,106730.0,106720.0,1.63390841]
[1748537853885,0.23399351,106730.0,106720.0,1.64028132]
[1748537854099,0.22462408,106730.0,106720.0,1.6683911]
[1748537854329,0.02786618,106730.0,106720.0,1.6777608]
[1748537854554,0.02886618,106730.0,106720.0,1.68175806]
[1748537854807,0.02786618,106730.0,106720.0,2.30207606]
[1748537855028,0.02886583,106730.0,106720.0,2.30407606]
[1748537855250,0.01012828,106730.0,106720.0,4.63487906]
[1748537855474,0.01012828,106730.0,106720.0,3.00782006]
[1748537855911,0.01949692,106730.0,106720.0,3.00782006]
[1748537856124,0.02886574,106730.0,106720.0,2.04328361]
[1748537856344,0.01949692,106730.0,106720.0,2.80324361]
[1748537856556,0.01012828,106730.0,106720.0,2.80328361]
[1748537857237,0.01012828,106730.0,106720.0,5.26777961]
[1748537857492,0.01012828,106730.0,106720.0,5.32777961]
[1748537857718,0.01012828,106730.0,106720.0,5.73619514]
[1748537857929,0.0093661,106760.0,106750.0,0.22999645]
[1748537858156,0.20605128,106770.0,106760.0,0.23621009]
[1748537858157,0.02809706,106770.0,106760.0,0.23621009]
[1748537858389,0.20605028,106770.0,106760.0,0.73722481]
[1748537858612,0.19668445,106770.0,106760.0,0.92456089]
[1748537858839,0.19668445,106770.0,106760.0,1.33392751]
[1748537859275,0.19668445,106770.0,106760.0,1.3339276]
[1748537859496,0.19668445,106770.0,106760.0,1.13722481]